fUSD/lending_fUSD_20240713
["ID","MTS","AMOUNT","RATE_DAILY","PERIOD"]
[331912188,1720831831540,-5556.99,0.00012765,2]
[331912189,1720831831551,-168.28,0.00012766,2]
[331912190,1720831831561,-438.11,0.00012784,2]
[331912191,1720831831572,-154.84,0.00012792,2]
[331912192,1720831831582,-250.0,0.00012808,2]
[331912193,1720831831592,-956.61,0.00012814,2]
[331912194,1720831831603,-150.0,0.00012849,2]
[331912195,1720831831612,-360.0,0.00012861,2]
[331912196,1720831831622,-249.32,0.00012871,2]
[331912197,1720831831631,-250.0,0.00012877,2]
[331912198,1720831831641,-3181.55999875,0.00012888,2]
[331912199,1720831831662,-584.59550704,0.00012888,2]
[331912200,1720831831672,-487.4499434,0.00012888,2]
[331912201,1720831831684,-696.38455081,0.00012888,2]
[331912202,1720831831693,-499.99,0.00012889,2]
[331912203,1720831831702,-28.7329332,0.00012902,2]
[331912204,1720831831720,-139.5570668,0.00012902,2]
[331912205,1720831831732,-3079.48,0.0001295,2]
[331912206,1720831831742,-1250.0,0.00013,2]
[331912207,1720831831751,-447.01,0.00013075,2]
[331912208,1720831831760,-684.40409981,0.00013104,2]
[331912210,1720831831771,-524.6389317,0.00013104,2]
[331912212,1720831831780,-846.01,0.00013241,2]
[331912214,1720831831790,-527.85,0.000133,2]
[331912215,1720831831802,-354.85,0.000133,2]
[331912217,1720831831812,-150.0,0.00013377,2]
[331912219,1720831831821,-1057.88,0.00013378,2]
[331912221,1720831831830,-150.0,0.00013378,2]
[331912223,1720831831839,-300.0,0.00013378,2]
[331912225,1720831831848,-710.34,0.00013378,2]
[331912226,1720831831857,-165.05,0.00013378,2]
[331912227,1720831831866,-369.63,0.00013378,2]
[331912228,1720831831875,-150.0,0.00013378,2]
[331912229,1720831831884,-150.0,0.00013378,2]
[331912230,1720831831893,-165.05,0.00013378,2]
[331912231,1720831831902,-150.0,0.00013378,2]
[331912232,1720831831911,-590.0,0.00013448,2]
[331912233,1720831831920,-150.0,0.00013478,2]
[331912234,1720831831929,-529.07,0.00013478,2]
[331912235,1720831831938,-150.0,0.00013478,2]
[331912236,1720831831947,-150.0,0.00013478,2]
[331912237,1720831831956,-150.0,0.00013478,2]
[331912238,1720831831965,-355.25,0.00013478,2]
[331912239,1720831831974,-529.07,0.00013478,2]
[331912240,1720831831983,-150.0,0.00013478,2]
[331912241,1720831832157,-150.0,0.00013478,2]
[331912242,1720831832166,-355.25,0.00013478,2]
[331912243,1720831832175,-165.05,0.00013478,2]
[331912244,1720831832185,-150.0,0.00013478,2]
[331912245,1720831832194,-355.25,0.00013478,2]
[331912246,1720831832203,-529.07,0.00013478,2]
[331912247,1720831832212,-150.0,0.00013478,2]
[331912248,1720831832223,-165.05,0.00013478,2]
[331912249,1720831832232,-424.85,0.00013478,2]
[331912250,1720831832241,-150.0,0.00013478,2]
[331912251,1720831832251,-355.25,0.00013478,2]
[331912252,1720831832260,-150.0,0.00013478,2]
[331912253,1720831832269,-150.0,0.00013478,2]
[331912254,1720831832279,-165.05,0.00013478,2]
[331912255,1720831832288,-165.05,0.00013478,2]
[331912256,1720831832298,-424.85,0.00013478,2]
[331912257,1720831832307,-150.0,0.00013478,2]
[331912258,1720831832318,-150.0,0.00013478,2]
[331912259,1720831832328,-424.85,0.00013478,2]
[331912260,1720831832337,-150.0,0.00013478,2]
[331912261,1720831832347,-150.0,0.00013478,2]
[331912262,1720831832357,-165.05,0.00013478,2]
[331912263,1720831832367,-150.0,0.00013478,2]
[331912264,1720831832377,-424.85,0.00013478,2]
[331912265,1720831832389,-150.0,0.00013478,2]
[331912266,1720831832398,-150.0,0.00013478,2]
[331912267,1720831832408,-165.05,0.00013478,2]
[331912268,1720831832418,-300.0,0.00013478,2]
[331912269,1720831832428,-424.85,0.00013478,2]
[331912270,1720831832437,-150.0,0.00013478,2]
[331912271,1720831832446,-150.0,0.00013478,2]
[331912272,1720831832456,-165.05,0.00013478,2]
[331912273,1720831832465,-424.85,0.00013578,2]
[331912274,1720831832474,-424.85,0.00013578,2]
[331912275,1720831832484,-424.85,0.00013578,2]
[331912276,1720831832494,-424.85,0.00013578,2]
[331912277,1720831832505,-174.903572,0.00013667,2]
[331912278,1720831832515,-174.903568,0.00013667,2]
[331912279,1720831832524,-250.0,0.00013699,2]
[331912280,1720831832534,-397.86,0.00013699,2]
[331912281,1720831832544,-150.0,0.00013727,2]
[331912282,1720831832556,-150.0,0.00013733,2]
[331912283,1720831832567,-150.0,0.00013742,2]
[331912284,1720831832578,-150.0,0.00013762,2]
[331912285,1720831832588,-150.0,0.0001377,2]
[331912286,1720831832600,-150.0,0.0001377,2]
[331912287,1720831832610,-150.0,0.00013775,2]
[331912288,1720831832620,-150.0,0.00013777,2]
[331912289,1720831832629,-150.0,0.0001379,2]
[331912290,1720831832638,-150.0,0.00013793,2]
[331912291,1720831832647,-181.69770516,0.00013794,2]
[331912292,1720831832656,-150.0,0.00013797,2]
[331912293,1720831832665,-150.0,0.000138,2]
[331912294,1720831832674,-150.0,0.00013801,2]
[331912295,1720831832683,-150.0,0.00013817,2]
[331912296,1720831832692,-150.0,0.00013828,2]
[331912297,1720831832701,-150.0,0.00013843,2]
[331912298,1720831832710,-150.0,0.00013843,2]
[331912299,1720831832719,-150.0,0.0001386,2]
[331912300,1720831832733,-150.0,0.00013863,2]
[331912301,1720831832742,-150.0,0.00013869,2]
[331912302,1720831832752,-150.0,0.00013876,2]
[331912303,1720831832761,-150.0,0.00013879,2]
[331912304,1720831832772,-118.70565653,0.0001388,2]
[331912305,1720831832785,-447.19674347,0.0001388,2]
[331912306,1720831832794,-150.0,0.00013886,2]
[331912307,1720831832807,-500.0,0.0001389,2]
[331912308,1720831832816,-150.0,0.00013891,2]
[331912309,1720831832826,-174.903568,0.00013894,2]
[331912310,1720831832835,-1000.0,0.00013896,2]
[331912311,1720831832845,-183.4622,0.00013899,2]
[331912312,1720831832854,-156.66894096,0.00013899,2]
[331912313,1720831832864,-156.66894094,0.00013899,2]
[331912314,1720831832873,-156.66894094,0.000139,2]
[331912315,1720831832882,-1702.658338,0.000139,2]
[331912316,1720831832892,-3372.8496,0.000139,2]
[331912317,1720831832901,-312.2862,0.000139,2]
[331912318,1720831832910,-20000.0,0.000139,3]
[331912319,1720831832919,-166.25448608,0.000139,2]
[331912320,1720831832928,-156.66894094,0.000139,2]
[331912321,1720831832938,-209.41652576,0.000139,2]
[331912322,1720831832948,-1041.9502258,0.000139,2]
[331912323,1720831832958,-333.33146574,0.000139,2]
[331912324,1720831832967,-150.0,0.00013902,2]
[331912325,1720831832976,-150.0,0.00013904,2]
[331912326,1720831832986,-150.0,0.00013906,2]
[331912327,1720831832995,-150.0,0.00013914,2]
[331912328,1720831833006,-150.0,0.00013916,2]
[331912329,1720831833017,-150.0,0.00013925,2]
[331912330,1720831833026,-150.0,0.00013927,2]
[331912331,1720831833036,-150.0,0.00013932,2]
[331912332,1720831833045,-150.0,0.00013937,2]
[331912333,1720831833055,-150.0,0.00013941,2]
[331912334,1720831833064,-150.0,0.00013953,2]
[331912335,1720831833074,-150.0,0.00013954,2]
[331912336,1720831833084,-150.0,0.00013964,2]
[331912337,1720831833095,-150.0,0.00013965,2]
[331912338,1720831833104,-150.0,0.00013966,2]
[331912339,1720831833114,-150.0,0.0001397,2]
[331912340,1720831833124,-150.0,0.00013972,2]
[331912341,1720831833133,-818.553335,0.00013973,2]
[331912342,1720831833142,-500.0,0.00013989,2]
[331912343,1720831833151,-500.0,0.00013989,2]
[331912344,1720831833161,-454.81639615,0.00013989,2]
[331912345,1720831833170,-150.0,0.00013989,2]
[331912346,1720831833179,-500.0,0.00013989,2]
[331912347,1720831833188,-500.0,0.00013989,2]
[331912348,1720831833198,-1436.5,0.00013989,2]
[331912349,1720831833206,-500.0,0.00013989,2]
[331912350,1720831833216,-500.0,0.00013989,2]
[331912351,1720831833225,-500.0,0.00013989,2]
[331912352,1720831833234,-500.0,0.00013989,2]
[331912353,1720831833244,-500.0,0.00013989,2]
[331912354,1720831833254,-500.0,0.00013989,2]
[331912355,1720831833263,-156.36455468,0.00013989,2]
[331912356,1720831833273,-500.0,0.00013989,2]
[331912357,1720831833283,-500.0,0.00013989,2]
[331912358,1720831833292,-500.0,0.00013989,2]
[331912359,1720831833301,-500.0,0.00013989,2]
[331912360,1720831833310,-500.0,0.00013989,2]
[331912361,1720831833319,-500.0,0.00013989,2]
[331912362,1720831833328,-500.0,0.00013989,2]
[331912363,1720831833338,-500.64604012,0.00013989,2]
[331912364,1720831833347,-500.0,0.00013989,2]
[331912365,1720831833356,-500.0,0.00013989,2]
[331912366,1720831833365,-500.0,0.00013989,2]
[331912367,1720831833374,-500.0,0.00013989,2]
[331912368,1720831833383,-3000.0,0.00013989,2]
[331912369,1720831833392,-500.0,0.00013989,2]
[331912370,1720831833401,-500.0,0.00013989,2]
[331912371,1720831833410,-500.0,0.00013989,2]
[331912372,1720831833420,-58414.81303,0.0001399,3]
[331912373,1720831833429,-150209.51922,0.0001399,3]
[331912374,1720831833439,-150.0,0.00013993,2]
[331912375,1720831833449,-150.0,0.00013995,2]
[331912376,1720831833457,-3408.32501763,0.00013997,2]
[331912377,1720831833466,-27266.60014104,0.00013997,2]
[331912378,1720831833475,-5931.14804107,0.00013999,2]
[331912379,1720831833485,-500.0,0.00013999,2]
[331912380,1720831833494,-500.0,0.00013999,2]
[331912381,1720831833503,-500.0,0.00013999,2]
[331912382,1720831833513,-186.59608487,0.00013999,2]
[331912383,1720831833523,-183.84938241,0.00013999,2]
[331912384,1720831833532,-500.0,0.00013999,2]
[331912385,1720831833542,-235.59405632,0.00013999,2]
[331912386,1720831833551,-150.01,0.00013999,2]
[331912387,1720831833560,-150.0,0.00013999,2]
[331912388,1720831833570,-367.5,0.00013999,2]
[331912389,1720831833579,-500.0,0.00013999,2]
[331912390,1720831833588,-500.0,0.00013999,2]
[331912391,1720831833597,-500.0,0.00013999,2]
[331912392,1720831833606,-226.92488543,0.00013999,2]
[331912393,1720831833615,-500.0,0.00013999,2]
[331912394,1720831833625,-500.0,0.00013999,2]
[331912395,1720831833634,-217.24,0.00013999,2]
[331912396,1720831833643,-500.0,0.00013999,2]
[331912397,1720831833653,-2446.74,0.00013999,2]
[331912398,1720831833662,-500.0,0.00013999,2]
[331912399,1720831833672,-195.33,0.00013999,2]
[331912400,1720831833682,-589.61,0.00013999,2]
[331912401,1720831833691,-589.61,0.00013999,2]
[331912402,1720831833700,-589.61,0.00013999,2]
[331912403,1720831833710,-589.61,0.00013999,2]
[331912404,1720831833719,-589.61,0.00013999,2]
[331912405,1720831833732,-589.61,0.00013999,2]
[331912406,1720831833742,-589.61,0.00013999,2]
[331912407,1720831833751,-589.61,0.00013999,2]
[331912408,1720831833760,-589.61,0.00013999,2]
[331912409,1720831833770,-589.61,0.00013999,2]
[331912410,1720831833780,-589.61,0.00013999,2]
[331912411,1720831833789,-589.61,0.00013999,2]
[331912412,1720831833799,-589.61,0.00013999,2]
[331912413,1720831833809,-589.61,0.00013999,2]
[331912414,1720831833819,-589.61,0.00013999,2]
[331912415,1720831833828,-589.61,0.00013999,2]
[331912416,1720831833838,-589.61,0.00013999,2]
[331912417,1720831833847,-589.61,0.00013999,2]
[331912418,1720831833856,-589.61,0.00013999,2]
[331912419,1720831833865,-589.61,0.00013999,2]
[331912420,1720831833875,-589.61,0.00013999,2]
[331912421,1720831833884,-589.61,0.00013999,2]
[331912422,1720831833893,-589.61,0.00013999,2]
[331912423,1720831833902,-1427.93,0.00013999,2]
[331912424,1720831833912,-589.83487461,0.00013999,2]
[331912425,1720831833921,-603.31766248,0.00013999,2]
[331912426,1720831833931,-364.5122265,0.00013999,2]
[331912427,1720831833940,-500.0,0.00013999,2]
[331912428,1720831833949,-1660.45,0.00013999,2]
[331912429,1720831833958,-539.0,0.00014,2]
[331912430,1720831833968,-147687.68109484,0.00014,2]
[331912431,1720831833980,-148812.1225,0.00014,2]
[331912455,1720831837509,-150.01,0.00013999,2]
[331912457,1720831837519,-1707.44675927,0.00013999,2]
[331912459,1720831837531,-3116.23335189,0.00013999,2]
[331912462,1720831837545,-1107.46792991,0.00013999,2]
[331912464,1720831837556,-169436.40708135,0.00014,2]
[331912466,1720831837568,-529.12011047,0.00014,2]
[331912468,1720831837581,-70512.55288488,0.00014,2]
[331912480,1720831837685,-1814.56851,0.00014,2]
[331912482,1720831837696,-8472.50944622,0.00014,2]
[331912484,1720831837714,-57847.39158221,0.00014,2]
[331912486,1720831837731,-583.90548,0.00014,2]
[331912489,1720831837751,-1138.18072319,0.00014,2]
[331912494,1720831837813,-10219.39772,0.00014,2]
[331912703,1720831839759,-88513.95765878,0.00014,2]
[331912710,1720831839820,-15001.91222307,0.00014,2]
[331912717,1720831839880,-474.621015,0.00014,2]
[331912719,1720831839892,-1209.54095137,0.00014,2]
[331912722,1720831839903,-32935.320011,0.00014,2]
[331913317,1720831845744,-1740.38360399,0.00013378,2]
[331913334,1720831845912,-846.47514523,0.00013378,2]
[331913605,1720832038765,155.0,0.00011199,2]
[331913606,1720832040704,379.34033163,0.00011199,2]
[331913607,1720832067251,196.39295394,0.00011199,2]
[331913608,1720832068664,155.0,0.00011199,2]
[331913609,1720832079750,346.75600778,0.00011199,2]
[331913610,1720832097345,227.32181018,0.00011199,2]
[331913611,1720832101406,272.71994125,0.00011199,2]
[331913612,1720832106488,898.70162986,0.00011199,2]
[331913613,1720832229070,419.51,0.00010876,2]
[331913614,1720832446939,1055.71054162,0.00011199,2]
[331913615,1720832533234,199.46340719,0.00011199,2]
[331913616,1720832574478,155.28822879,0.00011199,2]
[331913617,1720832575857,155.0,0.00011199,2]
[331913618,1720832584955,227.29307131,0.00011199,2]
[331913619,1720832588692,254.50435987,0.00011199,2]
[331913620,1720832591389,163.65389911,0.00011199,2]
[331913621,1720832601767,346.27969902,0.00011199,2]
[331913622,1720832616248,163.90445823,0.00011199,2]
[331913623,1720832640443,155.0,0.00011199,2]
[331913624,1720832672017,289.76705622,0.00011199,2]
[331913626,1720832742321,415.18,0.00010824,2]
[331913649,1720832995823,438.81523205,0.00011199,2]
[331913658,1720833031795,-205.32220319,0.00012314,2]
[331913659,1720833031805,-242.80738435,0.00012671,2]
[331913660,1720833031816,-7450.39419363,0.00012671,2]
[331913661,1720833031828,-14117.49842202,0.00012671,2]
[331913662,1720833031837,-250.0,0.00012712,2]
[331913663,1720833031847,-250.0,0.00012714,2]
[331913664,1720833031857,-199.45,0.0001273,2]
[331913665,1720833031866,-305.37767666,0.00012758,2]
[331913666,1720833031878,-70.91232334,0.00012758,2]
[331913667,1720833031887,-224.73855962,0.00012797,2]
[331913668,1720833031904,-775.26144038,0.00012797,2]
[331913669,1720833031914,-147.2699805,0.00012938,2]
[331913670,1720833031926,-32.0600195,0.00012938,2]
[331913671,1720833031936,-449.65808454,0.00012975,2]
[331913672,1720833031948,-50.33191546,0.00012975,2]
[331913673,1720833031958,-168.29,0.0001298,2]
[331913674,1720833031968,-386.98,0.0001298,2]
[331913675,1720833031978,-44.80615868,0.00013088,2]
[331913676,1720833032057,-360.35116936,0.00013088,2]
[331913677,1720833032068,-10.02267196,0.00013088,2]
[331913678,1720833032078,-150.0,0.000131,2]
[331913679,1720833032087,-150.0,0.000131,2]
[331913680,1720833032096,-300.0,0.0001312,2]
[331913681,1720833032106,-39.9907245,0.00013128,2]
[331913682,1720833032116,-315.7795185,0.00013128,2]
[331913683,1720833032128,-15.29540299,0.00013128,2]
[331913684,1720833032137,-520.96253011,0.00013128,2]
[331913685,1720833032146,-160.51638292,0.00013178,2]
[331913686,1720833032161,-167.05361708,0.00013178,2]
[331913687,1720833032170,-101.11871397,0.00013178,2]
[331913688,1720833032182,-48.88128603,0.00013178,2]
[331913689,1720833032191,-424.85,0.000132,2]
[331913690,1720833032202,-150.0,0.000132,2]
[331913691,1720833032211,-141.55893449,0.000132,2]
[331913692,1720833032225,-23.49106551,0.000132,2]
[331913693,1720833032234,-424.85,0.00013278,2]
[331913694,1720833032244,-150.0,0.00013378,2]
[331913695,1720833032253,-424.85,0.00013378,2]
[331913696,1720833032263,-150.0,0.00013378,2]
[331913697,1720833032272,-165.05,0.00013378,2]
[331913698,1720833032282,-424.85,0.00013378,2]
[331913699,1720833032292,-424.85,0.00013378,2]
[331913700,1720833032302,-424.85,0.00013378,2]
[331913701,1720833032311,-422.11,0.00013378,2]
[331913703,1720833032321,-424.85,0.00013378,2]
[331913705,1720833032331,-424.85,0.000134,2]
[331913707,1720833032341,-150.0,0.000134,2]
[331913709,1720833032350,-165.05,0.000134,2]
[331913711,1720833032360,-378.02823421,0.00013516,2]
[331913713,1720833032370,-150.0,0.00013666,2]
[331913715,1720833032380,-162.856366,0.00013667,2]
[331913717,1720833032390,-157.503432,0.00013667,2]
[331913719,1720833032400,-162.856364,0.00013667,2]
[331913721,1720833032413,-846.608457,0.00013667,2]
[331913723,1720833032423,-200.0,0.00013699,2]
[331913725,1720833032433,-279.87,0.00013699,2]
[331913727,1720833032442,-500.0,0.00013699,2]
[331913729,1720833032453,-250.0,0.00013699,2]
[331913731,1720833032463,-312.2489,0.0001379,2]
[331913733,1720833032472,-846.608457,0.00013838,2]
[331913735,1720833032483,-592.67144,0.0001386,2]
[331913737,1720833032494,-673.25462007,0.00013879,2]
[331913739,1720833032503,-6362.07761401,0.0001388,2]
[331913741,1720833032515,-689.30241408,0.0001388,2]
[331913753,1720833038078,-977.69249947,0.0001388,2]
[331913754,1720833038090,-335.76750053,0.0001388,2]
[331913755,1720833038102,-1135.6169544,0.0001388,2]
[331913756,1720833038114,-288.60952476,0.0001388,2]
[331913757,1720833038130,-565.67750439,0.0001388,2]
[331913758,1720833038141,-335.29489377,0.0001388,2]
[331913759,1720833038422,-349.23270885,0.0001388,2]
[331913760,1720833038431,-500.0,0.00013887,2]
[331913761,1720833038442,-500.0,0.00013888,2]
[331913763,1720833038451,-500.0,0.00013888,2]
[331913765,1720833038461,-479.92141116,0.00013889,2]
[331913767,1720833038471,-297.36585903,0.00013889,2]
[331913769,1720833038480,-2920.00911935,0.0001389,2]
[331913771,1720833038493,-7832.93162208,0.0001389,2]
[331913910,1720833039974,-2495.58714316,0.0001389,2]
[331913912,1720833039986,-4332.39584555,0.0001389,2]
[331913915,1720833040002,-2737.69338403,0.0001389,2]
[331913917,1720833040013,-451.24166141,0.0001389,2]
[331913919,1720833040024,-35046.58242442,0.0001389,2]
[331913921,1720833040033,-150.0,0.00013898,2]
[331913923,1720833040043,-158.38679976,0.00013899,2]
[331913925,1720833040052,-459.26754706,0.00013899,2]
[331913927,1720833040064,-158.38679973,0.00013899,2]
[331913928,1720833040074,-158.38679973,0.000139,2]
[331913930,1720833040084,-158.38679973,0.000139,2]
[331913933,1720833040094,-414.41,0.000139,2]
[331913934,1720833040103,-166.25448608,0.000139,2]
[331913937,1720833040122,-158.38679973,0.000139,2]
[331913939,1720833040133,-333.33146569,0.000139,2]
[331913941,1720833040142,-354.84061564,0.0001394,2]
[331913943,1720833040152,-1472.64234532,0.0001399,3]
[331913945,1720833040161,-11044.8175899,0.0001399,3]
[331913947,1720833040171,-299.93011901,0.00013999,2]
[331913949,1720833040180,-3438.28655934,0.00013999,2]
[331913951,1720833040189,-582.16997995,0.00013999,2]
[331913953,1720833040198,-500.0,0.00013999,2]
[331913955,1720833040208,-500.0,0.00013999,2]
[331913957,1720833040217,-500.0,0.00013999,2]
[331913959,1720833040226,-500.0,0.00013999,2]
[331913961,1720833040235,-509.64,0.00013999,2]
[331913963,1720833040244,-500.0,0.00013999,2]
[331913965,1720833040254,-150.0,0.00013999,2]
[331913967,1720833040263,-1481.84,0.00013999,2]
[331913969,1720833040272,-500.0,0.00013999,2]
[331913971,1720833040281,-1368.43,0.00013999,2]
[331913973,1720833040291,-597.0,0.00013999,2]
[331913974,1720833040300,-174.76912304,0.00013999,2]
[331913977,1720833040310,-500.0,0.00013999,2]
[331913978,1720833040319,-500.0,0.00013999,2]
[331913980,1720833040329,-500.0,0.00013999,2]
[331913983,1720833040339,-500.0,0.00013999,2]
[331913985,1720833040349,-500.0,0.00013999,2]
[331913987,1720833040359,-500.0,0.00013999,2]
[331913989,1720833040368,-500.0,0.00013999,2]
[331913991,1720833040378,-500.0,0.00013999,2]
[331913993,1720833040388,-500.0,0.00013999,2]
[331913995,1720833040397,-500.0,0.00013999,2]
[331913998,1720833040407,-500.0,0.00013999,2]
[331914001,1720833040420,-501.07,0.00013999,2]
[331914003,1720833040429,-500.0,0.00013999,2]
[331914006,1720833040439,-2444.03,0.00013999,2]
[331914034,1720833040669,-1651.6,0.00013999,2]
[331914037,1720833040680,-275.19184509,0.00013999,2]
[331914038,1720833040690,-624.81797914,0.00013999,2]
[331914041,1720833040699,-235.13,0.00013999,2]
[331914042,1720833040709,-500.0,0.00013999,2]
[331914044,1720833040718,-500.0,0.00013999,2]
[331914046,1720833040727,-533.0,0.00014,2]
[331914048,1720833040736,-506689.66544361,0.00014,2]
[331914050,1720833040746,-185550.10178043,0.00014,2]
[331914053,1720833040758,-476197.95467422,0.00014,2]
[331914055,1720833040769,-1011.59816096,0.00014,2]
[331914057,1720833040786,-10898.97398955,0.00014,2]
[331914060,1720833040798,-808.42444788,0.00014,2]
[331914062,1720833040809,-278.80499996,0.00014,2]
[331914064,1720833040820,-12874.38635967,0.00014,2]
[331914066,1720833040832,-1798.04631335,0.00014,2]
[331914071,1720833040868,-987.22897559,0.00014,2]
[331914286,1720833042796,-500.0,0.00013999,2]
[331914288,1720833042806,-2.33752327,0.00014,2]
[331914290,1720833042818,-631.48434811,0.00014,2]
[331914292,1720833042829,-1128.53186673,0.00014,2]
[331914295,1720833042841,-397.66172814,0.00014,2]
[331914297,1720833042852,-2807.8000002,0.00014,2]
[331914302,1720833042890,-1640.58514812,0.00014,2]
[331914304,1720833042902,-1212.44429205,0.00014,2]
[331914306,1720833042913,-571.7637085,0.00014,2]
[331914308,1720833042924,-35736.3529148,0.00014,2]
[331914321,1720833043042,-33340.24392775,0.00014,2]
[331914429,1720833044646,-1013.27421864,0.00014,2]
[331914430,1720833044658,-6536.68710222,0.00014,2]
[331914431,1720833044668,-12611.58875453,0.00014,2]
[331914432,1720833044680,-412.63836193,0.00014,2]
[331914433,1720833045930,-662.63936826,0.00014,2]
[331914434,1720833045942,-672.9575038,0.00014,2]
[331914435,1720833045954,-6254.49072629,0.00014,2]
[331914436,1720833045965,-14841.276087,0.00014,2]
[331914437,1720833046032,-14619.94,0.00014,2]
[331914438,1720833046043,-383.66038493,0.00014,2]
[331914439,1720833046058,-1165.21913976,0.00014,2]
[331914440,1720833046139,-280.26085818,0.00014,2]
[331914441,1720833046226,-382.88143247,0.00014,2]
[331914442,1720833046243,-389.63124367,0.00014,2]
[331914443,1720833046263,-469.65,0.00014,2]
[331914447,1720833266252,4430.19759358,0.00011199,2]
[331914448,1720833293995,1514.75315177,0.00011199,2]
[331914449,1720833341636,405.29,0.00010824,2]
[331914450,1720833352241,679.66680306,0.00011199,2]
[331914451,1720833458784,155.0,0.00011199,2]
[331914452,1720833482285,1054.76522724,0.00011199,2]
[331914458,1720833580780,261.84919482,0.00011199,2]
[331914459,1720833815769,529.72889138,0.00011199,2]
[331914460,1720833890859,431.06738212,0.00011199,2]
[331914461,1720833893317,400.57,0.00010507,2]
[331914462,1720833916538,307.88069932,0.00011199,2]
[331914463,1720833928937,155.0,0.00011199,2]
[331914465,1720833945305,213.20498743,0.00011199,2]
[331914467,1720833970466,212.4269223,0.00011199,2]
[331914478,1720834048457,155.0,0.00011199,2]
[331914483,1720834076146,156.29273338,0.00011199,2]
[331914501,1720834173301,197.85691649,0.00011199,2]
[331914511,1720834232135,-482.77585744,0.000118,2]
[331914512,1720834232147,-471.23388212,0.000118,2]
[331914513,1720834232157,-575.76611788,0.00012,2]
[331914514,1720834232167,-474.23388212,0.00012,2]
[331914515,1720834232177,-161.19035565,0.00012202,2]
[331914516,1720834232186,-264.56576223,0.00012302,2]
[331914517,1720834232297,-871.80111818,0.00012302,2]
[331914518,1720834232307,-310.0,0.00012302,2]
[331914519,1720834232317,-300.0,0.00012401,2]
[331914520,1720834232327,-10025.31,0.00012403,2]
[331914521,1720834232336,-11153.56905143,0.00012471,2]
[331914522,1720834232348,-8367.74094857,0.00012471,2]
[331914523,1720834232358,-150.0,0.00012472,2]
[331914524,1720834232367,-447.39,0.00012473,2]
[331914525,1720834232377,-499.99,0.00012473,2]
[331914526,1720834232386,-3439.57,0.00012473,2]
[331914527,1720834232395,-4229.48,0.00012473,2]
[331914528,1720834232405,-179.33,0.00012478,2]
[331914529,1720834232414,-150.0,0.00012485,2]
[331914530,1720834232424,-1876.0546342,0.0001251,2]
[331914531,1720834232434,-227.11,0.00012562,2]
[331914532,1720834232445,-250.0,0.00012572,2]
[331914533,1720834232455,-1000.0,0.00012596,2]
[331914534,1720834232465,-250.0,0.00012646,2]
[331914535,1720834232474,-349.96,0.00012646,2]
[331914536,1720834232484,-530.46,0.00012692,2]
[331914537,1720834232493,-299.99,0.00012692,2]
[331914538,1720834232503,-520.14,0.00012692,2]
[331914539,1720834232513,-400.57,0.00012771,2]
[331914540,1720834232522,-204.09,0.00012986,2]
[331914541,1720834232532,-1250.0,0.00013,2]
[331914542,1720834232542,-178.11,0.00013058,2]
[331914543,1720834232551,-371.06564599,0.00013128,2]
[331914544,1720834232561,-300.0,0.00013128,2]
[331914545,1720834232570,-167.63,0.00013326,2]
[331914546,1720834232580,-1816.0,0.00013447,2]
[331914547,1720834232590,-424.85,0.00013478,2]